[Event "41st Jacques-Lemans-Open 2022"]
[Site "St. Veit/Glan"]
[Date "2022.07.10"]
[Round "3.19"]
[White "Sucher, Johannes"]
[Black "Markun, Ozbej"]
[Result "1-0"]
[ECO "D02"]
[WhiteElo "2164"]
[BlackElo "1915"]
[Annotator "RC"]
[PlyCount "104"]
[EventDate "2022.07.09"]
[EventType "swiss"]
[EventCountry "AUT"]
[SourceTitle "playchess.com"]
[Source "ChessBase"]
[SourceQuality "1"]
[TimeControl "40/5400+30:1800+30"]

1. d4 {[%emt 0:00:03]} d5 {[%emt 0:00:22]} 2. Nf3 {[%emt 0:00:10]} e6 {[%emt 0:00:19]} 3. c4 {[%emt 0:04:33]} f5 {[%emt 0:01:21]} 4. Nc3 {[%emt 0:03:58]} Nf6 {[%emt 0:00:30]} 5. Bg5 {[%emt 0:02:24]} c6 {[%emt 0:01:06]} 6. e3 {[%emt 0:00:52]} Bd6 {[%emt 0:01:48]} 7. Ne5 {[%emt 0:08:55]} O-O {[%emt 0:03:10]} 8. f4 {[%emt 0:02:24]} Qe8 {[%emt 0:08:06]} 9. Be2 {[%emt 0:04:43]} Nbd7 {[%emt 0:02:28]} 10. O-O {[%emt 0:01:12]} Kh8 {[%emt 0:01:34]} 11. c5 {[%emt 0:07:59]} Be7 {[%emt 0:04:01]} 12. b4 {[%emt 0:02:28]} Nxe5 {[%emt 0:10:14]} 13. fxe5 {[%emt 0:02:13]} Ne4 {[%emt 0:00:09]} 14. Nxe4 {[%emt 0:01:04]} fxe4 {[%emt 0:00:42]} 15. Bxe7 {[%emt 0:06:37]} Rxf1+ {[%emt 0:01:51]} 16. Qxf1 {[%emt 0:01:29]} Qxe7 {[%emt 0:00:06]} 17. Qf4 {[%emt 0:00:50]} Bd7 {[%emt 0:00:54]} 18. Rf1 {[%emt 0:01:48]} Kg8 {[%emt 0:01:30]} 19. Bh5 {[%emt 0:01:14]} Rf8 {[%emt 0:24:06]} 20. Qxf8+ {[%emt 0:05:17]} Qxf8 {[%emt 0:00:09]} 21. Rxf8+ {[%emt 0:00:03]} Kxf8 {[%emt 0:00:05]} 22. Kf2 {[%emt 0:00:25]} Ke7 {[%emt 0:06:25]} 23. Be2 {[%emt 0:01:02]} Kd8 {[%emt 0:01:28]} 24. Ke1 {[%emt 0:09:46]} Kc7 {[%emt 0:01:56]} 25. Kd2 {[%emt 0:00:30]} b5 {[%emt 0:08:07]} 26. cxb6+ {[%emt 0:00:13]} Kxb6 {[%emt 0:00:13]} 27. Kc3 {[%emt 0:00:53]} Be8 {[%emt 0:01:25]} 28. Kb3 {[%emt 0:02:50]} Bd7 {[%emt 0:04:27]} 29. Bg4 {[%emt 0:01:19]} Bc8 {[%emt 0:03:29]} 30. a4 {[%emt 0:03:48]} a6 {[%emt 0:03:22]} 31. h4 {[%emt 0:01:06]} Bd7 {[%emt 0:02:58]} 32. a5+ {[%emt 0:00:29]} Kb7 {[%emt 0:03:24]} 33. Kc3 {[%emt 0:00:30]} Kc7 {[%emt 0:01:13]} 34. Kd2 {[%emt 0:00:23]} Kd8 {[%emt 0:01:26]} 35. Be2 {[%emt 0:00:33]} Bc8 {[%emt 0:00:07]} 36. Ke1 {[%emt 0:00:11]} Ke7 {[%emt 0:00:35]} 37. Kf2 {[%emt 0:00:23]} Kf7 {[%emt 0:02:08]} 38. Kg3 {[%emt 0:00:35]} h6 {[%emt 0:01:35]} 39. Kf4 {[%emt 0:01:12]} Ke7 {[%emt 0:00:30]} 40. Bh5 {[%emt 0:00:53]} Bd7 {[%emt 0:00:30]} 41. Kg4 {[%emt 0:36:45]} Kf8 {[%emt 0:17:38]} 42. Bg6 {[%emt 0:00:00]} Ke7 {[%emt 0:01:18]} 43. Kh5 {[%emt 0:00:00]} Kf8 {[%emt 0:04:54]} 44. g4 {[%emt 0:00:00]} Ke7 {[%emt 0:00:26]} 45. g5 {[%emt 0:00:00]} hxg5 {[%emt 0:00:04]} 46. Kxg5 {[%emt 0:00:00]} Kf8 {[%emt 0:00:55]} 47. Bh5 {[%emt 0:00:00]} Kg8 {[%emt 0:05:20]} 48. Be2 {[%emt 0:00:00]} Bc8 {[%emt 0:00:05]} 49. Kg6 {[%emt 0:00:00]} Kf8 {[%emt 0:00:10]} 50. h5 {[%emt 0:00:00]} Kg8 {[%emt 0:00:19]} 51. h6 {[%emt 0:00:00]} gxh6 {[%emt 0:00:34]} 52. Kf6 {[%emt 0:00:00]} Kf8 {[%emt 0:00:15]} 1-0

[Event "41st Jacques-Lemans-Open 2022"]
[Site "St. Veit/Glan"]
[Date "2022.07.10"]
[Round "3.20"]
[White "Feinig, Mario"]
[Black "Merei, David"]
[Result "1-0"]
[ECO "B52"]
[WhiteElo "2141"]
[BlackElo "1839"]
[Annotator "NA RC"]
[PlyCount "53"]
[EventDate "2022.07.09"]
[EventType "swiss"]
[EventCountry "AUT"]
[SourceTitle "playchess.com"]
[Source "ChessBase"]
[SourceQuality "1"]
[TimeControl "40/5400+30:1800+30"]

1. e4 c5 {[%emt 0:00:11]} 2. Nf3 {[%emt 0:00:09]} d6 {[%emt 0:00:16]} 3. Bb5+ {[%emt 0:00:06]} Bd7 {[%emt 0:00:20]} 4. Bxd7+ {[%emt 0:00:07]} Qxd7 {[%emt 0:00:10]} 5. c4 {[%emt 0:00:07]} Nc6 {[%emt 0:00:45]} 6. Nc3 {[%emt 0:00:11]} Nf6 {[%emt 0:01:55]} 7. d4 {[%emt 0:00:20]} cxd4 {[%emt 0:00:12]} 8. Nxd4 g6 {[%emt 0:02:05]} 9. f3 {[%emt 0:00:21]} Bg7 {[%emt 0:00:16]} 10. Be3 {[%emt 0:00:07]} O-O {[%emt 0:01:41]} 11. O-O {[%emt 0:00:07]} Rac8 {[%emt 0:02:11]} 12. b3 {[%emt 0:00:09]} Rfd8 {[%emt 0:00:51]} 13. Qd2 {[%emt 0:00:10]} e6 {[%emt 0:03:07]} 14. Rad1 {[%emt 0:00:10]} d5 {[%emt 0:12:31]} 15. cxd5 {[%emt 0:00:10]} exd5 {[%emt 0:00:09]} 16. Nxc6 {[%emt 0:00:06]} bxc6 {[%emt 0:01:05]} 17. e5 {[%emt 0:00:08]} Ne8 {[%emt 0:03:21]} 18. f4 {[%emt 0:00:02]} f6 {[%emt 0:12:49]} 19. Ne4 {[%emt 0:13:42]} fxe5 {[%emt 0:06:53]} 20. fxe5 {[%emt 0:00:14]} Bxe5 {[%emt 0:09:06]} 21. Bg5 {[%emt 0:00:27]} Qc7 {[%emt 0:01:49]} 22. Bxd8 {[%emt 0:01:14]} Bxh2+ {[%emt 0:00:38]} 23. Kh1 {[%emt 0:00:01]} Rxd8 {[%emt 0:02:11]} 24. Qh6 {[%emt 0:00:48]} Bd6 {[%emt 0:03:07]} 25. Ng5 {[%emt 0:07:30]} Rd7 {[%emt 0:06:16]} 26. Ne6 {[%emt 0:00:40]} Qc8 {[%emt 0:00:33]} 27. Rf8+ 1-0

[Event "41st Jacques-Lemans-Open 2022"]
[Site "St. Veit/Glan"]
[Date "2022.07.10"]
[Round "3.21"]
[White "Burbach, Brunel Baron"]
[Black "Hofstadler, Mario"]
[Result "0-1"]
[ECO "B13"]
[WhiteElo "1820"]
[BlackElo "2123"]
[Annotator "RC"]
[PlyCount "120"]
[EventDate "2022.07.09"]
[EventType "swiss"]
[EventCountry "AUT"]
[SourceTitle "playchess.com"]
[Source "ChessBase"]
[SourceQuality "1"]
[TimeControl "40/5400+30:1800+30"]

1. e4 {[%emt 0:00:06]} c6 {[%emt 0:00:12]} 2. d4 {[%emt 0:00:20]} d5 {[%emt 0:00:06]} 3. exd5 {[%emt 0:00:08]} cxd5 {[%emt 0:00:12]} 4. Bd3 {[%emt 0:00:11]} Nc6 {[%emt 0:00:09]} 5. c3 {[%emt 0:00:14]} Nf6 {[%emt 0:00:16]} 6. Bf4 {[%emt 0:00:10]} Bg4 {[%emt 0:00:17]} 7. Qb3 {[%emt 0:00:35]} Qc8 {[%emt 0:03:00]} 8. Nd2 {[%emt 0:01:20]} e6 {[%emt 0:00:19]} 9. Ngf3 {[%emt 0:00:16]} Be7 {[%emt 0:00:10]} 10. O-O {[%emt 0:00:14]} Bh5 {[%emt 0:00:08]} 11. Rae1 {[%emt 0:05:00]} O-O {[%emt 0:00:42]} 12. Qc2 {[%emt 0:04:30]} Bg6 {[%emt 0:01:11]} 13. Bxg6 {[%emt 0:00:21]} hxg6 {[%emt 0:00:06]} 14. Qd3 {[%emt 0:00:43]} a6 {[%emt 0:06:08]} 15. Ng5 {[%emt 0:26:43]} Nh7 {[%emt 0:40:37]} 16. Nxh7 {[%emt 0:08:59]} Kxh7 {[%emt 0:00:10]} 17. Re3 {[%emt 0:02:59]} Rh8 {[%emt 0:09:17]} 18. Rfe1 {[%emt 0:06:01]} Qd8 {[%emt 0:02:49]} 19. Rh3+ {[%emt 0:02:50]} Kg8 {[%emt 0:00:43]} 20. Ree3 {[%emt 0:06:05]} Rxh3 {[%emt 0:01:54]} 21. Rxh3 {[%emt 0:00:06]} Bf6 {[%emt 0:10:50]} 22. Qg3 {[%emt 0:04:05]} Rc8 {[%emt 0:01:49]} 23. Nf3 {[%emt 0:17:28]} Ne7 {[%emt 0:01:36]} 24. Bg5 {[%emt 0:02:54]} Nf5 {[%emt 0:01:11]} 25. Qf4 {[%emt 0:00:58]} Qc7 {[%emt 0:03:32]} 26. g4 {[%emt 0:01:40]} Bxg5 {[%emt 0:08:08]} 27. Qxg5 {[%emt 0:04:23]} Nh6 {[%emt 0:00:08]} 28. Ne5 {[%emt 0:00:58]} Qd8 {[%emt 0:02:01]} 29. Qxd8+ {[%emt 0:01:29]} Rxd8 {[%emt 0:00:05]} 30. Rg3 {[%emt 0:00:35]} g5 {[%emt 0:01:54]} 31. h3 {[%emt 0:00:34]} f6 {[%emt 0:01:27]} 32. Nd3 {[%emt 0:00:07]} b6 {[%emt 0:00:56]} 33. Re3 {[%emt 0:01:11]} Kf7 {[%emt 0:01:01]} 34. f4 {[%emt 0:01:11]} gxf4 {[%emt 0:00:29]} 35. Nxf4 {[%emt 0:00:06]} Rd6 {[%emt 0:00:14]} 36. Kg2 {[%emt 0:00:39]} Ng8 {[%emt 0:01:27]} 37. Kf3 {[%emt 0:00:40]} g5 {[%emt 0:02:41]} 38. Ng2 {[%emt 0:01:19]} Ne7 {[%emt 0:00:46]} 39. h4 {[%emt 0:00:41]} gxh4 {[%emt 0:00:08]} 40. Nxh4 {[%emt 0:00:05]} Rd8 {[%emt 0:00:28]} 41. Kg3 {[%emt 0:09:46]} Nc8 {[%emt 0:00:40]} 42. Re2 {[%emt 0:03:31]} Nd6 {[%emt 0:01:36]} 43. Rh2 {[%emt 0:00:42]} Rh8 {[%emt 0:13:56]} 44. Nf3 {[%emt 0:00:57]} Rxh2 {[%emt 0:01:46]} 45. Nxh2 {[%emt 0:00:06]} Nc4 {[%emt 0:00:16]} 46. b3 {[%emt 0:00:14]} Nd6 {[%emt 0:00:10]} 47. Kf4 {[%emt 0:00:20]} Nb5 {[%emt 0:00:27]} 48. c4 {[%emt 0:00:56]} Nxd4 {[%emt 0:02:52]} 49. cxd5 {[%emt 0:00:34]} exd5 {[%emt 0:00:19]} 50. Ke3 {[%emt 0:00:23]} Nc6 {[%emt 0:00:20]} 51. Nf1 {[%emt 0:02:33]} Ke6 {[%emt 0:01:49]} 52. Kf4 {[%emt 0:00:16]} a5 {[%emt 0:02:03]} 53. Nd2 {[%emt 0:04:57]} Nb4 {[%emt 0:02:36]} 54. a3 {[%emt 0:01:01]} Nc2 {[%emt 0:00:06]} 55. a4 {[%emt 0:00:05]} Nd4 {[%emt 0:00:26]} 56. Ke3 {[%emt 0:00:21]} Nc6 {[%emt 0:00:09]} 57. Nf3 {[%emt 0:00:15]} Kd6 {[%emt 0:02:21]} 58. g5 {[%emt 0:00:39]} fxg5 {[%emt 0:00:26]} 59. Nxg5 {[%emt 0:00:06]} Kc5 {[%emt 0:00:10]} 60. Nf3 {[%emt 0:00:07]} Kb4 {[%emt 0:00:20]} 0-1

[Event "41st Jacques-Lemans-Open 2022"]
[Site "St. Veit/Glan"]
[Date "2022.07.10"]
[Round "3.22"]
[White "Katter, Katharina"]
[Black "Bauer, Sebastian"]
[Result "0-1"]
[ECO "A49"]
[WhiteElo "2000"]
[BlackElo "2380"]
[Annotator "RC"]
[PlyCount "118"]
[EventDate "2022.07.09"]
[EventType "swiss"]
[EventCountry "AUT"]
[SourceTitle "playchess.com"]
[Source "ChessBase"]
[SourceQuality "1"]
[TimeControl "40/5400+30:1800+30"]

1. d4 {[%emt 0:00:04]} Nf6 {[%emt 0:00:04]} 2. Nf3 {[%emt 0:00:12]} g6 {[%emt 0:00:06]} 3. g3 {[%emt 0:00:08]} Bg7 {[%emt 0:00:04]} 4. Bg2 {[%emt 0:00:08]} O-O {[%emt 0:00:06]} 5. O-O {[%emt 0:00:13]} d6 {[%emt 0:00:03]} 6. Nc3 {[%emt 0:00:20]} c6 {[%emt 0:12:12]} 7. e4 {[%emt 0:00:47]} Qc7 {[%emt 0:02:13]} 8. e5 {[%emt 0:04:03]} dxe5 {[%emt 0:00:38]} 9. Nxe5 {[%emt 0:00:12]} Be6 {[%emt 0:00:45]} 10. Bf4 {[%emt 0:04:17]} Qc8 {[%emt 0:00:13]} 11. Qe2 {[%emt 0:03:18]} Nbd7 {[%emt 0:00:31]} 12. Rad1 {[%emt 0:06:23]} Nb6 {[%emt 0:01:07]} 13. a4 {[%emt 0:03:47]} Rd8 {[%emt 0:12:54]} 14. a5 {[%emt 0:04:53]} Nbd5 {[%emt 0:00:12]} 15. Nxd5 {[%emt 0:00:51]} Bxd5 {[%emt 0:00:51]} 16. c4 {[%emt 0:01:26]} Bxg2 {[%emt 0:00:08]} 17. Kxg2 {[%emt 0:00:01]} Nh5 {[%emt 0:18:54]} 18. Bc1 {[%emt 0:07:02]} c5 {[%emt 0:03:03]} 19. d5 {[%emt 0:16:15]} Qc7 {[%emt 0:04:29]} 20. Nd3 {[%emt 0:00:47]} Re8 {[%emt 0:01:17]} 21. Be3 {[%emt 0:07:52]} b6 {[%emt 0:06:41]} 22. axb6 {[%emt 0:03:12]} axb6 {[%emt 0:00:02]} 23. Ra1 {[%emt 0:06:46]} Rad8 {[%emt 0:01:20]} 24. Rfd1 {[%emt 0:02:05]} e6 {[%emt 0:05:02]} 25. Nf4 {[%emt 0:01:38]} Nxf4+ {[%emt 0:00:25]} 26. Bxf4 {[%emt 0:00:02]} Qb7 {[%emt 0:00:27]} 27. Qf3 {[%emt 0:05:49]} Bxb2 {[%emt 0:04:59]} 28. Rab1 {[%emt 0:03:33]} Bd4 {[%emt 0:01:47]} 29. dxe6 {[%emt 0:01:04]} Qxf3+ {[%emt 0:00:12]} 30. Kxf3 {[%emt 0:00:01]} Rxe6 {[%emt 0:00:20]} 31. Rb3 {[%emt 0:10:57]} Ra8 {[%emt 0:10:04]} 32. Rdb1 {[%emt 0:00:40]} Ra2 {[%emt 0:00:44]} 33. Be3 {[%emt 0:03:07]} Rf6+ {[%emt 0:00:12]} 34. Ke4 {[%emt 0:00:58]} Re6+ {[%emt 0:02:13]} 35. Kf3 {[%emt 0:03:07]} Bxe3 {[%emt 0:00:23]} 36. fxe3 {[%emt 0:00:16]} Rxh2 {[%emt 0:00:07]} 37. Rxb6 {[%emt 0:00:08]} Rxb6 {[%emt 0:00:04]} 38. Rxb6 {[%emt 0:00:11]} Rc2 {[%emt 0:00:05]} 39. Ke4 {[%emt 0:02:50]} Rxc4+ {[%emt 0:00:08]} 40. Kd5 {[%emt 0:00:32]} Rg4 {[%emt 0:00:17]} 41. Kxc5 {[%emt 0:30:14]} Rxg3 {[%emt 0:30:09]} 42. Kd4 {[%emt 0:00:00]} Kg7 {[%emt 0:00:00]} 43. Ke4 {[%emt 0:00:00]} h5 {[%emt 0:00:00]} 44. Kf4 {[%emt 0:00:00]} Rg4+ {[%emt 0:00:00]} 45. Kf3 {[%emt 0:00:00]} f5 {[%emt 0:00:00]} 46. Rb8 {[%emt 0:00:00]} Kh6 {[%emt 0:00:00]} 47. Rh8+ {[%emt 0:00:00]} Kg5 {[%emt 0:00:00]} 48. Rh7 {[%emt 0:00:00]} h4 {[%emt 0:00:00]} 49. Rh8 {[%emt 0:00:00]} Rg3+ {[%emt 0:00:00]} 50. Kf2 {[%emt 0:00:00]} Kg4 {[%emt 0:00:00]} 51. Rg8 {[%emt 0:00:00]} g5 {[%emt 0:00:00]} 52. Rg7 {[%emt 0:00:00]} Rf3+ {[%emt 0:00:00]} 53. Ke2 {[%emt 0:00:00]} Rh3 {[%emt 0:00:00]} 54. Kf2 {[%emt 0:00:00]} Rh2+ {[%emt 0:00:00]} 55. Kg1 {[%emt 0:00:00]} Re2 {[%emt 0:00:00]} 56. Re7 {[%emt 0:00:00]} h3 {[%emt 0:00:00]} 57. Kf1 {[%emt 0:00:00]} Ra2 {[%emt 0:00:00]} 58. Rh7 {[%emt 0:00:00]} h2 {[%emt 0:00:00]} 59. Rh6 {[%emt 0:00:00]} Kg3 {[%emt 0:00:00]} 0-1

[Event "41st Jacques-Lemans-Open 2022"]
[Site "St. Veit/Glan"]
[Date "2022.07.10"]
[Round "3.23"]
[White "Fahrner, Kurt"]
[Black "Stadlinger, Matthias"]
[Result "1-0"]
[ECO "A08"]
[WhiteElo "2331"]
[BlackElo "1975"]
[Annotator "RC"]
[PlyCount "59"]
[EventDate "2022.07.09"]
[EventType "swiss"]
[EventCountry "AUT"]
[SourceTitle "playchess.com"]
[Source "ChessBase"]
[SourceQuality "1"]
[TimeControl "40/5400+30:1800+30"]

1. g3 {[%emt 0:00:06]} e6 {[%emt 0:00:08]} 2. Bg2 {[%emt 0:00:09]} d5 {[%emt 0:00:03]} 3. d3 {[%emt 0:00:18]} Nf6 {[%emt 0:00:18]} 4. Nd2 {[%emt 0:00:17]} c5 {[%emt 0:00:35]} 5. e4 {[%emt 0:00:20]} Nc6 {[%emt 0:00:39]} 6. Ngf3 {[%emt 0:00:14]} Be7 {[%emt 0:00:43]} 7. O-O {[%emt 0:00:30]} O-O {[%emt 0:00:09]} 8. Re1 {[%emt 0:01:17]} b5 {[%emt 0:02:32]} 9. e5 {[%emt 0:00:20]} Nd7 {[%emt 0:00:53]} 10. Nf1 {[%emt 0:00:07]} Qb6 {[%emt 0:02:51]} 11. h4 {[%emt 0:00:26]} a5 {[%emt 0:05:13]} 12. N1h2 {[%emt 0:01:23]} a4 {[%emt 0:17:30]} 13. a3 {[%emt 0:01:33]} b4 {[%emt 0:03:18]} 14. h5 {[%emt 0:00:24]} c4 {[%emt 0:11:27]} 15. d4 {[%emt 0:09:45]} c3 {[%emt 0:04:02]} 16. bxc3 {[%emt 0:00:10]} bxa3 {[%emt 0:00:16]} 17. h6 {[%emt 0:03:25]} g6 {[%emt 0:02:38]} 18. Bxa3 {[%emt 0:05:11]} Qc7 {[%emt 0:12:04]} 19. Ng4 {[%emt 0:11:24]} Ba6 {[%emt 0:09:20]} 20. Bxe7 {[%emt 0:03:06]} Nxe7 {[%emt 0:00:07]} 21. Rxa4 {[%emt 0:00:20]} Qxc3 {[%emt 0:02:00]} 22. Re3 {[%emt 0:09:25]} Qc6 {[%emt 0:01:26]} 23. Rea3 {[%emt 0:00:08]} Be2 {[%emt 0:04:36]} 24. Qa1 {[%emt 0:00:03]} Rxa4 {[%emt 0:00:29]} 25. Rxa4 {[%emt 0:00:06]} Bxf3 {[%emt 0:00:40]} 26. Bxf3 {[%emt 0:00:11]} Nf5 {[%emt 0:04:08]} 27. Ra7 {[%emt 0:01:42]} Nb6 {[%emt 0:00:58]} 28. Qa3 {[%emt 0:03:22]} Ra8 {[%emt 0:01:41]} 29. Nf6+ {[%emt 0:00:08]} Kh8 {[%emt 0:00:10]} 30. Rxf7 {[%emt 0:00:10]} 1-0

[Event "41st Jacques-Lemans-Open 2022"]
[Site "St. Veit/Glan"]
[Date "2022.07.10"]
[Round "3.24"]
[White "Missethan, Michael"]
[Black "Dotzer, Lukas"]
[Result "0-1"]
[ECO "B51"]
[WhiteElo "1991"]
[BlackElo "2269"]
[Annotator "RC"]
[PlyCount "156"]
[EventDate "2022.07.09"]
[EventType "swiss"]
[EventCountry "AUT"]
[SourceTitle "playchess.com"]
[Source "ChessBase"]
[SourceQuality "1"]
[TimeControl "40/5400+30:1800+30"]

1. e4 {[%emt 0:00:03]} c5 {[%emt 0:00:04]} 2. Nf3 {[%emt 0:00:06]} d6 {[%emt 0:00:17]} 3. Bb5+ {[%emt 0:00:06]} Nd7 {[%emt 0:00:08]} 4. d4 {[%emt 0:01:15]} cxd4 {[%emt 0:00:17]} 5. Qxd4 {[%emt 0:00:14]} a6 {[%emt 0:00:24]} 6. Bxd7+ {[%emt 0:00:13]} Bxd7 {[%emt 0:00:10]} 7. O-O {[%emt 0:00:26]} Nf6 {[%emt 0:01:43]} 8. c4 {[%emt 0:05:47]} g6 {[%emt 0:04:23]} 9. Nc3 {[%emt 0:01:04]} Bg7 {[%emt 0:00:22]} 10. a4 {[%emt 0:05:56]} O-O {[%emt 0:03:13]} 11. Qd3 {[%emt 0:01:02]} Rc8 {[%emt 0:10:35]} 12. Be3 {[%emt 0:10:50]} Qa5 {[%emt 0:11:57]} 13. Bd2 {[%emt 0:10:43]} Qb4 {[%emt 0:10:46]} 14. Nd5 {[%emt 0:25:07]} Qxc4 {[%emt 0:00:26]} 15. Nxe7+ {[%emt 0:06:50]} Kh8 {[%emt 0:00:06]} 16. Qxd6 {[%emt 0:02:14]} Nxe4 {[%emt 0:09:33]} 17. Qxd7 {[%emt 0:06:04]} Rcd8 {[%emt 0:00:38]} 18. Qxb7 {[%emt 0:03:34]} Nxd2 {[%emt 0:00:09]} 19. Rfd1 {[%emt 0:09:36]} Nxf3+ {[%emt 0:03:31]} 20. Qxf3 {[%emt 0:00:08]} Bxb2 {[%emt 0:01:26]} 21. Rxd8 {[%emt 0:01:55]} Rxd8 {[%emt 0:00:09]} 22. Rd1 {[%emt 0:00:41]} Rxd1+ {[%emt 0:04:59]} 23. Qxd1 {[%emt 0:00:01]} Bd4 {[%emt 0:00:11]} 24. Nc6 {[%emt 0:08:01]} Bxf2+ {[%emt 0:03:11]} 25. Kxf2 {[%emt 0:00:01]} Qxc6 {[%emt 0:00:12]} 26. Qd4+ {[%emt 0:00:33]} Kg8 {[%emt 0:00:44]} 27. h3 {[%emt 0:00:18]} h5 {[%emt 0:04:21]} 28. Kg1 {[%emt 0:00:17]} Qc1+ {[%emt 0:01:52]} 29. Kh2 {[%emt 0:00:11]} Qc7+ {[%emt 0:01:08]} 30. Kg1 {[%emt 0:00:27]} a5 {[%emt 0:02:18]} 31. Kh1 {[%emt 0:00:25]} Qe7 {[%emt 0:01:04]} 32. Kh2 {[%emt 0:00:52]} h4 {[%emt 0:01:20]} 33. Qg4 {[%emt 0:01:26]} Qd6+ {[%emt 0:02:40]} 34. Kg1 {[%emt 0:00:18]} Qb4 {[%emt 0:00:20]} 35. Qd7 {[%emt 0:00:35]} Kg7 {[%emt 0:01:53]} 36. Qb5 {[%emt 0:00:30]} f6 {[%emt 0:04:02]} 37. Qd7+ {[%emt 0:00:25]} Kh6 {[%emt 0:00:34]} 38. Qc6 {[%emt 0:00:29]} Qd4+ {[%emt 0:04:39]} 39. Kh2 {[%emt 0:00:15]} g5 {[%emt 0:01:42]} 40. Qb5 {[%emt 0:00:50]} Qe5+ {[%emt 0:02:51]} 41. Kg1 {[%emt 0:01:28]} Kg6 {[%emt 0:03:49]} 42. Qc6 {[%emt 0:04:06]} Qe1+ {[%emt 0:00:48]} 43. Kh2 {[%emt 0:00:16]} Qg3+ {[%emt 0:00:07]} 44. Kg1 {[%emt 0:00:10]} Qe5 {[%emt 0:00:05]} 45. Kh1 {[%emt 0:04:25]} Kf5 {[%emt 0:02:42]} 46. Qc8+ {[%emt 0:03:45]} Ke4 {[%emt 0:00:34]} 47. Qc4+ {[%emt 0:03:38]} Ke3 {[%emt 0:00:40]} 48. Qc6 {[%emt 0:04:24]} Kd2 {[%emt 0:03:08]} 49. Qc4 {[%emt 0:04:26]} Qa1+ {[%emt 0:01:00]} 50. Kh2 {[%emt 0:00:08]} Qc3 {[%emt 0:00:19]} 51. Qd5+ {[%emt 0:03:01]} Kc2 {[%emt 0:00:35]} 52. Qb5 {[%emt 0:03:21]} Qe5+ {[%emt 0:04:03]} 53. Kg1 {[%emt 0:00:02]} Kc3 {[%emt 0:02:26]} 54. Kf1 {[%emt 0:02:29]} Kd4 {[%emt 0:01:49]} 55. Qc6 {[%emt 0:01:56]} Kd3 {[%emt 0:01:19]} 56. Kg1 {[%emt 0:00:31]} Kd2 {[%emt 0:06:53]} 57. Qd7+ {[%emt 0:00:26]} Kc3 {[%emt 0:01:51]} 58. Qb5 {[%emt 0:00:15]} Kd4 {[%emt 0:00:55]} 59. Qc6 {[%emt 0:00:21]} f5 {[%emt 0:01:22]} 60. Kh1 {[%emt 0:00:57]} f4 {[%emt 0:01:25]} 61. Kg1 {[%emt 0:00:21]} Qc5 {[%emt 0:01:02]} 62. Qd7+ {[%emt 0:00:43]} Kc3+ {[%emt 0:00:43]} 63. Kh2 {[%emt 0:00:09]} f3 {[%emt 0:03:22]} 64. gxf3 {[%emt 0:00:30]} Qf2+ {[%emt 0:00:12]} 65. Kh1 {[%emt 0:00:04]} Qxf3+ {[%emt 0:00:07]} 66. Kh2 {[%emt 0:00:32]} Qf2+ {[%emt 0:01:17]} 67. Kh1 {[%emt 0:00:02]} Qe1+ {[%emt 0:00:18]} 68. Kg2 {[%emt 0:00:37]} Qd2+ {[%emt 0:00:06]} 69. Qxd2+ {[%emt 0:00:09]} Kxd2 {[%emt 0:00:12]} 70. Kf3 {[%emt 0:00:19]} Kc3 {[%emt 0:00:07]} 71. Kg4 {[%emt 0:00:05]} Kb4 {[%emt 0:00:05]} 72. Kxg5 {[%emt 0:00:09]} Kxa4 {[%emt 0:00:06]} 73. Kxh4 {[%emt 0:00:08]} Kb4 {[%emt 0:00:13]} 74. Kg5 {[%emt 0:00:23]} a4 {[%emt 0:00:05]} 75. h4 {[%emt 0:00:06]} a3 {[%emt 0:00:06]} 76. h5 {[%emt 0:00:02]} a2 {[%emt 0:00:06]} 77. h6 {[%emt 0:00:18]} a1=Q {[%emt 0:00:07]} 78. Kg6 {[%emt 0:00:10]} Qh8 {[%emt 0:00:05]} 0-1

[Event "41st Jacques-Lemans-Open 2022"]
[Site "St. Veit/Glan"]
[Date "2022.07.10"]
[Round "3.25"]
[White "Novosel, Lovro"]
[Black "Buchegger, Fridolin"]
[Result "1-0"]
[ECO "E69"]
[WhiteElo "2255"]
[BlackElo "1961"]
[Annotator "RC"]
[PlyCount "49"]
[EventDate "2022.07.09"]
[EventType "swiss"]
[EventCountry "AUT"]
[SourceTitle "playchess.com"]
[Source "ChessBase"]
[SourceQuality "1"]
[TimeControl "40/5400+30:1800+30"]

1. d4 {[%emt 0:00:04]} Nf6 {[%emt 0:00:07]} 2. Nf3 {[%emt 0:00:04]} g6 {[%emt 0:00:09]} 3. g3 {[%emt 0:00:06]} Bg7 {[%emt 0:00:08]} 4. Bg2 {[%emt 0:00:13]} O-O {[%emt 0:00:09]} 5. O-O {[%emt 0:00:14]} c6 {[%emt 0:02:10]} 6. c4 {[%emt 0:00:07]} d6 {[%emt 0:00:29]} 7. Nc3 {[%emt 0:00:08]} Nbd7 {[%emt 0:03:23]} 8. e4 {[%emt 0:00:36]} e5 {[%emt 0:01:42]} 9. h3 {[%emt 0:00:13]} a5 {[%emt 0:00:54]} 10. Be3 {[%emt 0:00:52]} Re8 {[%emt 0:02:21]} 11. Qc2 {[%emt 0:00:40]} exd4 {[%emt 0:04:03]} 12. Nxd4 {[%emt 0:00:17]} Nc5 {[%emt 0:00:42]} 13. Rad1 {[%emt 0:00:32]} Qe7 {[%emt 0:02:27]} 14. Rfe1 {[%emt 0:01:09]} Ne6 {[%emt 0:02:13]} 15. f4 {[%emt 0:03:31]} Nxd4 {[%emt 0:02:23]} 16. Bxd4 {[%emt 0:00:11]} Nd7 {[%emt 0:00:42]} 17. Qf2 {[%emt 0:06:45]} Bf8 {[%emt 0:09:05]} 18. b3 {[%emt 0:03:30]} Nc5 {[%emt 0:03:22]} 19. e5 {[%emt 0:02:12]} Ne6 {[%emt 0:04:18]} 20. exd6 {[%emt 0:00:45]} Qxd6 {[%emt 0:00:08]} 21. Ne4 {[%emt 0:00:14]} Qd8 {[%emt 0:04:25]} 22. Nf6+ {[%emt 0:00:27]} Kh8 {[%emt 0:00:06]} 23. Nxe8+ {[%emt 0:00:14]} Nxd4 {[%emt 0:00:08]} 24. Rxd4 {[%emt 0:00:25]} Qb6 {[%emt 0:01:34]} 25. Nd6 {[%emt 0:00:35]} 1-0